bitfinex/quotes_ETHUSD_20240910
["timestamp","ask_amount","ask_price","bid_price","bid_amount"]
[1725939237814,0.09581371,2348.8,2348.3,2.4175]
[1725939237977,0.09581371,2348.8,2348.3,2.98132947]
[1725939239821,2.345,2349.4,2348.6,2.2504]
[1725939239987,0.09581371,2349.7,2348.9,3.56802172]
[1725939240313,2.345,2350.0,2349.2,2.2504]
[1725939240612,1.31762172,2349.7,2349.3,0.08512137]
[1725939240909,1.31762172,2349.7,2349.2,2.2504]
[1725939241283,1.31762172,2349.5,2349.0,10.36]
[1725939241490,1.31762172,2349.5,2349.0,3.0]
[1725939241806,1.31762172,2349.5,2348.9,5.2504]
[1725939242018,1.31762172,2349.5,2348.9,6.25736539]
[1725939242176,1.41343543,2349.5,2348.9,4.00696539]
[1725939242376,1.41343543,2349.5,2348.9,3.0]
[1725939242580,1.41343543,2349.5,2348.8,5.0]
[1725939243703,1.41343543,2349.5,2348.9,0.08513735]
[1725939244733,1.41343543,2349.5,2348.8,5.0]
[1725939245830,1.31762172,2349.3,2348.8,5.0]
[1725939247424,1.41343543,2349.5,2348.8,6.48517]
[1725939247626,1.41343543,2349.5,2348.8,5.0]
[1725939252942,1.41343543,2349.5,2348.9,0.08513731]
[1725939253154,0.09581371,2349.5,2348.9,0.08513731]
[1725939253841,2.44081371,2349.6,2348.9,0.08513731]
[1725939255046,2.44081371,2349.6,2348.8,5.0]
[1725939255217,2.44081371,2349.6,2348.9,0.92358217]
[1725939256910,2.44081371,2349.6,2349.0,0.08513192]
[1725939259050,2.2806,2349.8,2349.1,5.68642172]
[1725939259208,2.2806,2349.8,2349.2,4.06161734]
[1725939259417,2.2806,2349.8,2349.3,1.05992112]
[1725939264922,2.2806,2349.8,2349.3,0.97480391]
[1725939266427,2.2806,2349.8,2349.4,0.0851171]
[1725939270959,2.2806,2349.8,2349.3,0.97480391]
[1725939273554,2.2806,2349.8,2349.4,0.0851168]
[1725939273881,2.2806,2349.8,2349.4,0.58875887]
[1725939274072,2.2806,2349.8,2349.2,3.55]
[1725939274989,1.31762172,2349.6,2349.2,3.0]
[1725939275153,2.4929,2349.5,2348.9,11.25432907]
[1725939275352,2.4929,2349.5,2349.0,3.0]
[1725939276985,2.4929,2349.5,2348.9,3.89432907]
[1725939277333,2.4929,2349.5,2349.0,0.83620923]
[1725939278591,2.4929,2349.5,2349.1,0.08512847]
[1725939279487,2.4929,2349.5,2349.0,0.83620923]
[1725939281420,2.4929,2349.5,2348.9,3.89432907]
[1725939283583,2.4929,2349.5,2348.9,4.72648118]
[1725939284098,2.4929,2349.5,2348.9,5.42635807]
[1725939284296,2.4929,2349.5,2349.0,1.15144978]
[1725939284499,2.4929,2349.5,2348.9,3.0]
[1725939284701,2.4929,2349.5,2349.0,1.15145289]
[1725939284899,2.4929,2349.5,2348.9,4.70059619]
[1725939285098,2.4929,2349.5,2349.0,1.15144731]
[1725939285302,2.4929,2349.5,2348.9,5.59493288]
[1725939285504,2.4929,2349.5,2349.0,2.88014243]
[1725939285689,2.4929,2349.5,2349.0,1.22429564]
[1725939289409,3.89243543,2349.4,2348.9,3.0]
[1725939289613,3.89243543,2349.4,2348.8,3.32082907]
[1725939289614,3.79662172,2349.4,2348.8,3.32082907]
[1725939289840,2.479,2349.4,2348.9,2.88037443]
[1725939290011,2.479,2349.4,2348.8,3.32082907]
[1725939290336,2.479,2349.4,2348.9,3.58110106]
[1725939290537,2.479,2349.4,2349.0,1.15216704]
[1725939290728,2.479,2349.4,2348.9,0.70072158]
[1725939290933,2.479,2349.4,2349.0,1.15215908]
[1725939291113,2.479,2349.4,2348.9,1.59505065]
[1725939291314,2.479,2349.4,2349.0,1.55430084]
[1725939291518,2.479,2349.4,2349.0,0.40215507]
[1725939296615,2.479,2349.4,2348.9,1.59505065]
[1725939296828,2.4491,2349.4,2348.9,0.70072158]
[1725939297011,2.4491,2349.4,2348.8,0.89432907]
[1725939297012,2.4491,2349.4,2348.8,3.89432907]
[1725939297232,2.4491,2349.4,2348.9,2.88176843]
[1725939297511,2.4491,2349.4,2349.0,1.15277289]
[1725939297717,2.4491,2349.4,2348.8,3.89432907]
[1725939297918,2.4491,2349.4,2348.9,2.88192805]
[1725939298129,2.4491,2349.4,2349.0,1.15277122]
[1725939298351,2.4491,2349.3,2348.8,3.89432907]
[1725939298669,2.4491,2349.3,2348.9,3.67885386]
[1725939298823,2.4491,2349.3,2349.0,1.15283906]
[1725939299023,2.4491,2349.3,2348.9,0.79675621]
[1725939299245,2.4491,2349.3,2349.0,1.1528346]
[1725939299571,2.4491,2349.3,2348.9,1.69108528]
[1725939299943,2.4491,2349.3,2349.0,1.98658391]
[1725939300098,2.4491,2349.3,2349.0,0.83378183]
[1725939300450,2.4491,2349.3,2348.9,0.89432907]
[1725939300647,2.4491,2349.3,2349.0,2.88194843]
[1725939300847,2.4491,2349.3,2348.8,3.89432907]
[1725939301048,2.4491,2349.3,2348.9,3.77627032]
[1725939301284,2.4491,2349.3,2349.0,2.88194125]
[1725939301482,2.4491,2349.3,2348.9,0.89432907]
[1725939301678,2.4491,2349.3,2349.0,1.15277011]
[1725939301866,0.09581371,2349.5,2348.9,3.75145065]
[1725939301867,2.4491,2349.5,2348.9,3.75145065]
[1725939302068,2.4491,2349.5,2349.0,2.88187]
[1725939302280,2.4491,2349.5,2349.1,1.152748]
[1725939302600,2.4491,2349.5,2348.9,3.75145065]
[1725939302769,2.4491,2349.5,2349.0,4.29615429]
[1725939303103,1.31762172,2349.3,2349.1,1.15276146]
[1725939303258,2.4491,2349.2,2348.9,1.46055065]
[1725939303456,2.4491,2349.4,2349.0,2.88204563]
[1725939303686,2.4491,2349.4,2349.1,1.15281825]
[1725939303884,2.4491,2349.4,2349.0,0.89432907]
[1725939304070,2.4491,2349.4,2349.1,2.8819227]
[1725939304256,2.4491,2349.4,2349.0,0.89432907]
[1725939304590,2.4491,2349.4,2349.1,2.8820287]
[1725939304803,2.4491,2349.4,2349.0,1.71717281]
[1725939304950,2.4491,2349.4,2349.1,2.88199308]
[1725939305158,2.4491,2349.4,2349.0,0.82284374]
[1725939305359,2.4491,2349.4,2349.1,1.15283927]
[1725939305671,2.4491,2349.4,2349.0,1.71717281]
[1725939305871,2.4491,2349.4,2349.1,2.88210846]
[1725939306066,2.4491,2349.4,2349.0,1.71717281]
[1725939306297,2.4491,2349.4,2349.1,2.88209108]
[1725939306494,2.4491,2349.4,2349.0,1.71717281]
[1725939306699,2.4491,2349.4,2349.1,2.88230747]
[1725939306893,2.4491,2349.4,2349.0,1.71717281]
[1725939307095,2.4491,2349.4,2349.1,3.4753498]
[1725939307448,2.4491,2349.4,2349.1,0.5930454]
[1725939309123,2.4474,2349.6,2349.2,1.15315413]
[1725939309278,2.4474,2349.6,2349.1,1.48737447]
[1725939309604,2.4474,2349.6,2349.2,3.81212639]
[1725939309900,2.4474,2349.6,2349.2,0.92903416]
[1725939310562,2.4474,2349.6,2349.3,1.15335444]
[1725939310807,2.4474,2349.6,2349.2,0.92903416]
[1725939311109,2.4474,2349.6,2349.3,1.15335299]
[1725939311320,2.4474,2349.6,2349.2,0.92903416]
[1725939311479,2.4474,2349.6,2349.3,1.15345657]
[1725939311681,2.4474,2349.6,2349.2,0.92903416]
[1725939311915,2.4474,2349.6,2349.3,1.15346543]
[1725939312220,2.4474,2349.6,2349.2,0.92903416]
[1725939312379,2.4474,2349.6,2349.3,1.3951033]
[1725939312583,2.4474,2349.6,2349.3,0.24164086]
[1725939313521,2.3794,2349.8,2349.4,2.9697457]
[1725939313826,2.3794,2349.8,2349.5,3.77895848]
[1725939313976,2.3794,2349.8,2349.6,3.40517557]
[1725939314183,2.3794,2349.8,2349.6,0.52054616]
[1725939314376,2.3794,2349.8,2349.4,0.97944536]
[1725939314592,2.3794,2349.8,2349.5,2.88320045]
[1725939314790,2.3794,2349.8,2349.4,0.89432907]
[1725939315079,2.3794,2349.8,2349.5,1.15329973]
[1725939315417,2.3794,2349.8,2349.4,0.89432907]
[1725939315627,2.3794,2349.8,2349.2,0.89432907]
[1725939315628,3.63812172,2349.6,2349.2,0.89432907]
[1725939315794,2.40211371,2349.5,2349.1,3.89432907]
[1725939315991,2.40211371,2349.5,2349.1,3.0]
[1725939316292,2.40211371,2349.5,2349.2,1.1532062]
[1725939316619,2.40211371,2349.5,2349.1,3.0]
[1725939317103,2.40211371,2349.5,2349.0,7.36]
[1725939317307,2.40211371,2349.5,2349.1,1.15329769]
[1725939317513,2.40211371,2349.5,2348.9,3.89432907]
[1725939317707,2.40211371,2349.5,2349.0,3.44945538]
[1725939317903,2.40211371,2349.5,2349.1,1.15329352]
[1725939318219,2.40211371,2349.5,2349.0,0.56622158]
[1725939318431,2.3063,2349.5,2349.1,2.88326318]
[1725939318726,2.3063,2349.5,2349.0,1.46055065]
[1725939318927,2.3063,2349.5,2349.1,4.58679525]
[1725939319111,2.3063,2349.5,2349.2,1.15327014]
[1725939319313,2.3063,2349.5,2349.1,0.80930374]
[1725939319527,2.3063,2349.5,2349.2,2.88319199]
[1725939319829,2.3063,2349.5,2349.1,1.70363281]
[1725939320030,2.3063,2349.5,2349.2,1.7450581]
[1725939320197,2.3063,2349.5,2349.2,0.5917773]
[1725939320732,2.3063,2349.5,2349.1,0.80930374]
[1725939322310,2.3063,2349.5,2349.2,1.15334047]
[1725939322631,2.3063,2349.5,2349.1,0.80930374]
[1725939322841,2.3063,2349.5,2349.2,1.15337335]
[1725939323018,2.3063,2349.5,2349.1,0.80930374]
[1725939323538,2.3063,2349.5,2349.2,1.15340475]
[1725939323711,2.3063,2349.5,2349.0,1.46055065]
[1725939323898,2.3063,2349.5,2349.1,3.54956871]
[1725939324098,2.3063,2349.5,2349.0,1.46055065]
[1725939324298,2.3063,2349.5,2349.1,3.54963273]
[1725939324522,2.3063,2349.5,2349.0,0.89432907]
[1725939324727,2.3063,2349.5,2349.1,1.15347213]
[1725939324942,2.3063,2349.5,2349.0,0.84401877]
[1725939325113,2.3063,2349.5,2349.1,1.15345929]
[1725939325297,2.3063,2349.5,2349.0,1.73834784]
[1725939325498,2.3063,2349.5,2349.1,1.15346084]
[1725939325727,2.3063,2349.5,2349.0,0.84401877]
[1725939326040,2.3063,2349.5,2349.1,3.54972571]
[1725939326223,2.3063,2349.5,2349.0,1.73834784]
[1725939326429,2.3063,2349.5,2349.1,3.54974479]
[1725939326742,2.3063,2349.5,2349.0,1.73834784]
[1725939326903,2.3063,2349.5,2349.1,3.54972623]
[1725939327103,2.3063,2349.5,2349.0,1.73834784]
[1725939327314,2.3063,2349.5,2349.1,3.5497779]
[1725939327535,2.3063,2349.5,2349.0,1.73834784]
[1725939327837,2.2538,2349.3,2349.1,1.81953907]
[1725939328038,2.2538,2349.3,2348.9,3.89432907]
[1725939328199,2.2538,2349.3,2349.0,4.11609183]
[1725939328402,2.2538,2349.3,2349.1,1.15351036]
[1725939328639,2.2538,2349.3,2349.0,0.56622158]
[1725939328839,2.2538,2349.3,2349.1,1.1534855]
[1725939329145,2.2538,2349.3,2349.0,0.56622158]
[1725939329317,2.2538,2349.3,2349.1,1.15348753]
[1725939329518,2.2538,2349.3,2349.0,0.56622158]
[1725939329721,2.2538,2349.3,2349.1,1.15349014]
[1725939329989,2.2538,2349.3,2349.0,0.56622158]
[1725939330255,2.2538,2349.3,2349.1,1.15348653]
[1725939330403,2.2538,2349.3,2349.0,0.56622158]
[1725939330604,2.2538,2349.3,2349.1,3.54983012]
[1725939330848,2.2538,2349.3,2349.0,1.46055065]
[1725939331139,2.2538,2349.3,2349.1,3.5498131]
[1725939331356,2.53181371,2349.5,2349.1,0.80954971]
[1725939331658,2.436,2349.5,2349.2,2.88370813]
[1725939331818,2.436,2349.8,2349.3,0.08513331]
[1725939332355,0.09581371,2349.7,2349.2,0.89432907]
[1725939332662,0.09581371,2349.7,2349.3,3.54949288]
[1725939332872,0.09581371,2349.7,2349.2,1.9221902]
[1725939333165,0.09581371,2349.7,2349.3,3.54949559]
[1725939333356,0.09581371,2349.7,2349.2,1.9221902]
[1725939333663,0.09581371,2349.7,2349.3,1.1533765]
[1725939333865,0.09581371,2349.7,2349.2,1.02786113]
[1725939334070,0.00136803,2349.6,2349.3,1.15340262]
[1725939334265,0.00136803,2349.6,2349.3,0.08512248]
[1725939336333,0.00136803,2349.6,2349.2,1.02786113]
[1725939336576,0.00136803,2349.6,2349.3,1.15340076]
[1725939336871,0.00136803,2349.6,2349.2,1.02786113]
[1725939337074,0.00136803,2349.6,2349.3,1.1533921]
[1725939337274,0.00136803,2349.6,2349.2,1.02786113]
[1725939337533,2.4184,2349.5,2349.3,1.15340287]
[1725939337681,2.4184,2349.5,2349.2,1.02786113]
[1725939337881,2.4184,2349.5,2349.3,1.15339765]
[1725939338085,2.4184,2349.5,2349.2,1.11298467]
[1725939338383,0.00136803,2349.6,2349.3,1.15337257]
[1725939338588,0.00136803,2349.6,2349.2,1.02786113]
[1725939338744,0.00136803,2349.6,2349.3,1.15337963]
[1725939338943,0.00136803,2349.6,2349.2,1.02786113]
[1725939339145,0.00136803,2349.6,2349.3,1.1533788]
[1725939339443,0.00136803,2349.6,2349.2,1.02786113]
[1725939339644,0.00136803,2349.6,2349.3,1.62656161]
[1725939339960,0.00136803,2349.6,2349.3,0.47317399]
[1725939341279,0.00136803,2349.6,2349.2,1.02786113]
[1725939341479,0.00136803,2349.6,2349.3,1.15340325]
[1725939341684,0.00136803,2349.6,2349.2,1.02786113]
[1725939341887,2.469,2349.3,2349.0,0.89432907]
[1725939342091,2.469,2349.1,2348.9,0.89432907]
[1725939342391,2.469,2349.1,2349.0,1.15348894]
[1725939343162,2.469,2349.1,2348.8,3.89432907]
[1725939343363,2.469,2349.1,2348.9,2.88358006]
[1725939343665,2.469,2349.1,2348.8,0.89432907]
[1725939343863,2.469,2349.1,2348.9,2.8836143]
[1725939344066,2.469,2349.1,2348.8,0.89432907]
[1725939344272,2.469,2349.1,2348.9,2.88360806]
[1725939344462,2.469,2349.1,2348.8,0.89432907]
[1725939344789,2.469,2349.1,2348.9,1.15339825]
[1725939344951,2.469,2349.1,2348.7,0.89432907]
[1725939345155,2.469,2349.1,2348.8,2.88353073]
[1725939345375,2.469,2349.1,2348.7,0.89432907]
[1725939345554,2.469,2349.1,2348.8,2.88327198]
[1725939345769,2.469,2349.1,2348.7,0.89432907]
[1725939345966,2.469,2349.1,2348.8,2.88327128]
[1725939346176,2.469,2349.1,2348.7,0.89432907]
[1725939346491,2.469,2349.1,2348.8,2.88301513]
[1725939346692,2.469,2349.1,2348.7,1.57040293]
[1725939346861,2.469,2349.1,2348.8,2.88301578]
[1725939347066,2.469,2349.1,2348.7,1.57040293]
[1725939347401,2.469,2349.1,2348.8,2.88299408]
[1725939347553,2.469,2349.1,2348.7,1.57040293]
[1725939347891,2.469,2349.1,2348.8,2.8827772]
[1725939348095,2.4515,2349.3,2348.9,1.23825296]
[1725939348302,2.4515,2349.5,2349.0,7.26237681]
[1725939348447,2.4515,2349.5,2349.1,5.16613934]
[1725939348648,2.4515,2349.5,2349.2,2.88242292]
[1725939348857,2.4515,2349.5,2349.1,1.84628926]
[1725939348858,2.4515,2349.5,2349.1,1.84628931]
[1725939349057,2.4515,2349.5,2349.2,2.88226788]
[1725939349296,2.4515,2349.5,2349.1,0.95196024]
[1725939349494,2.4515,2349.5,2349.2,3.50492788]
[1725939349668,2.4515,2349.5,2349.2,0.62261893]
[1725939350007,2.4515,2349.5,2349.0,2.0]
[1725939350196,2.4515,2349.5,2349.1,1.15297724]
[1725939350374,2.4515,2349.5,2349.0,2.0]
[1725939351069,2.4515,2349.5,2349.1,1.15049081]
[1725939351274,2.4515,2349.5,2348.9,3.89432907]
[1725939351475,0.09581371,2349.4,2349.0,3.75253525]
[1725939351794,0.09581371,2349.4,2349.1,1.15047678]
[1725939351997,0.09581371,2349.4,2349.0,0.8763433]
[1725939352460,2.54731371,2349.5,2349.0,0.8763433]
[1725939353502,2.4515,2349.5,2348.9,0.97946355]
[1725939353656,2.4515,2349.5,2349.0,1.15048129]
[1725939353861,2.4515,2349.5,2348.8,4.41616791]
[1725939354106,2.4515,2349.5,2348.9,2.8762139]
[1725939354279,2.4515,2349.5,2349.0,1.15048556]
[1725939354478,2.4515,2349.5,2348.9,2.46108003]
[1725939354679,2.4515,2349.5,2349.0,1.15046481]
[1725939354877,0.09581371,2349.4,2348.9,1.48161649]
[1725939355177,0.09581371,2349.4,2349.0,1.15048557]
[1725939355378,0.09581371,2349.4,2348.9,1.48161649]
[1725939355579,0.09581371,2349.4,2349.0,1.15046481]
[1725939355792,2.54731371,2349.5,2348.9,1.56675096]
[1725939355968,2.54731371,2349.5,2349.0,1.15046144]
[1725939356166,2.54731371,2349.5,2348.9,1.56675096]
[1725939356386,2.54731371,2349.5,2349.0,1.15045425]
[1725939356596,2.54731371,2349.5,2348.9,1.56675096]
[1725939356801,2.4515,2349.5,2349.0,1.1504534]
[1725939357129,2.4515,2349.5,2348.9,1.56675096]
[1725939357285,2.4515,2349.5,2349.0,1.74873713]
[1725939357585,2.4515,2349.5,2349.0,0.59829189]
[1725939358886,3.95642835,2349.5,2348.9,4.56675096]
[1725939359130,2.58791371,2349.4,2348.8,1.41616791]
[1725939359286,2.58791371,2349.4,2348.9,2.87613795]
[1725939359487,2.58791371,2349.4,2348.8,4.41616791]
[1725939359800,2.58791371,2349.4,2348.9,2.8761569]
[1725939360125,2.58791371,2349.4,2348.8,4.41616791]
[1725939360299,2.58791371,2349.4,2348.9,2.87664678]
[1725939360501,2.58791371,2349.4,2348.9,0.08513451]
[1725939361338,2.58791371,2349.4,2349.0,1.15080544]
[1725939361507,2.58791371,2349.4,2348.9,0.08513451]
[1725939361827,2.58791371,2349.4,2349.0,1.15080082]
[1725939362030,2.58791371,2349.4,2348.8,4.41616791]
[1725939362201,2.58791371,2349.4,2348.9,2.87700218]
[1725939362397,2.58791371,2349.4,2349.0,1.15080087]
[1725939362602,2.58791371,2349.4,2348.8,4.41616791]
[1725939362820,2.58791371,2349.4,2348.9,2.87696655]
[1725939362987,2.58791371,2349.4,2349.0,1.15078662]
[1725939363185,2.58791371,2349.4,2348.8,4.41616791]
[1725939363424,2.58791371,2349.4,2348.9,2.87691468]
[1725939363620,2.58791371,2349.4,2349.0,1.15076587]
[1725939363784,2.58791371,2349.4,2348.9,0.08513455]
[1725939363991,2.58791371,2349.4,2349.0,1.15075593]
[1725939364232,2.58791371,2349.4,2348.9,0.08513455]
[1725939364438,2.58791371,2349.4,2349.0,1.15074123]
[1725939364602,2.58791371,2349.4,2348.9,0.08513487]
[1725939369035,2.4921,2349.4,2349.0,2.9006516]
[1725939369193,2.4921,2349.4,2348.9,0.08513487]
[1725939369389,2.4921,2349.4,2349.0,2.90026525]
[1725939369633,2.4921,2349.4,2349.0,0.9661768]
[1725939371499,2.58791371,2349.4,2348.8,4.41616791]
[1725939371700,2.58791371,2349.4,2348.9,2.90053281]
[1725939371901,2.58791371,2349.4,2349.0,1.16019692]
[1725939372253,2.58791371,2349.4,2348.8,4.41616791]
[1725939372405,2.58791371,2349.4,2348.9,2.90038661]
[1725939372743,2.58791371,2349.4,2348.8,4.41616791]
[1725939372936,2.58791371,2349.4,2348.9,2.90053641]
[1725939373138,2.58791371,2349.4,2348.8,4.41616791]
[1725939373436,2.58791371,2349.4,2348.9,3.95100271]
[1725939373735,2.58791371,2349.4,2348.9,1.05043918]
[1725939374437,2.58791371,2349.4,2348.8,1.41616791]
[1725939374639,2.482,2349.0,2348.7,0.69989519]
[1725939374953,2.482,2349.0,2348.6,8.25432907]
[1725939374954,2.482,2349.0,2348.5,0.89432907]
[1725939375104,2.482,2349.3,2348.7,0.08515242]
[1725939375304,2.482,2349.3,2348.8,2.90089773]
[1725939375512,2.482,2349.3,2348.9,2.90047811]
[1725939375713,2.482,2349.5,2349.0,0.08513826]
[1725939375913,2.482,2349.5,2349.1,1.15994754]
[1725939376143,2.482,2349.5,2349.1,0.28390952]
[1725939376852,2.482,2349.5,2349.0,0.08513826]
[1725939377147,2.482,2349.5,2349.1,2.89977854]
[1725939377443,2.482,2349.5,2349.0,0.89432907]
[1725939377739,2.482,2349.5,2349.1,2.89969118]
[1725939377937,2.482,2349.5,2349.0,0.89432907]
[1725939378147,2.57781371,2349.5,2349.1,1.15989708]
[1725939378303,2.57781371,2349.5,2349.0,0.97945794]
[1725939378304,2.482,2349.5,2349.0,0.97945794]
[1725939378507,2.482,2349.5,2349.1,1.15988215]
[1725939378736,2.482,2349.5,2349.2,1.15988215]
[1725939378948,2.482,2349.5,2349.0,1.92876485]
[1725939379142,2.482,2349.5,2349.1,1.15992163]
[1725939379451,2.482,2349.5,2349.0,1.92876485]
[1725939379664,2.482,2349.5,2349.1,1.16002035]
[1725939379952,2.482,2349.5,2349.0,1.92876485]
[1725939380121,2.482,2349.5,2349.1,1.16005192]
[1725939380325,2.482,2349.5,2349.0,1.92876485]
[1725939380522,2.482,2349.5,2349.1,1.16008294]
[1725939380731,2.482,2349.5,2349.0,1.92876485]
[1725939380954,2.482,2349.5,2349.1,1.16010799]
[1725939381261,2.482,2349.5,2349.0,1.92876485]
[1725939381467,2.482,2349.5,2349.1,1.7191413]
[1725939381763,2.482,2349.5,2349.2,1.16008923]
[1725939381932,2.53781371,2349.8,2349.3,0.08512885]
[1725939382246,0.09581371,2349.7,2349.1,3.45338114]
[1725939382463,0.09581371,2349.7,2349.2,1.96603106]
[1725939382625,2.442,2349.6,2349.1,3.45338114]
[1725939382832,1.60074206,2349.7,2349.2,1.16030882]
[1725939382833,0.09581371,2349.5,2349.2,1.16030882]
[1725939383055,2.442,2349.5,2349.1,2.0]
[1725939383262,2.442,2349.5,2349.2,1.16036834]
[1725939383446,2.84627421,2349.5,2349.1,2.0]
[1725939383644,2.84627421,2349.5,2349.2,1.16040693]
[1725939383858,2.84627421,2349.5,2349.0,0.89432907]
[1725939384163,2.84627421,2349.5,2349.1,1.16033873]
[1725939384464,2.84627421,2349.5,2349.2,1.16033873]
[1725939384756,2.84627421,2349.5,2349.0,0.89432907]
[1725939384958,2.84627421,2349.5,2349.1,1.16042073]
[1725939385153,2.84627421,2349.5,2349.2,1.16042073]
[1725939385318,2.84627421,2349.5,2349.0,0.89432907]
[1725939385518,2.84627421,2349.5,2349.1,1.16047288]
[1725939385714,2.84627421,2349.5,2349.2,1.16047288]
[1725939386018,2.84627421,2349.5,2349.0,0.89432907]
[1725939386228,2.442,2349.5,2349.1,1.16045365]
[1725939386435,2.442,2349.5,2349.2,1.16045365]
[1725939386633,2.442,2349.5,2349.0,0.89432907]
[1725939386837,2.442,2349.5,2349.1,1.16049332]
[1725939387036,2.442,2349.5,2349.2,1.16049332]
[1725939387255,2.442,2349.5,2349.0,0.89432907]
[1725939387582,2.442,2349.5,2349.1,1.16055182]
[1725939387713,2.442,2349.5,2349.2,1.16055182]
[1725939387914,2.84627421,2349.5,2349.1,0.89432907]
[1725939388160,2.84627421,2349.5,2349.2,1.16047052]
[1725939388330,0.09581371,2349.4,2349.0,0.89432907]
[1725939388540,2.4516,2349.3,2348.9,0.89432907]
[1725939388754,2.4516,2349.3,2349.0,2.9017808]
[1725939388916,2.4516,2349.3,2348.8,2.89432907]
[1725939389122,2.4516,2349.3,2348.9,2.90179193]
[1725939389322,2.4516,2349.3,2349.0,1.16071677]
[1725939389552,2.4516,2349.3,2348.8,2.89432907]
[1725939389819,2.4516,2349.3,2348.9,3.79609639]
[1725939390044,2.4516,2349.3,2349.0,2.90176732]
[1725939390228,2.4516,2349.3,2348.9,0.89432907]
[1725939390434,2.4516,2349.3,2349.0,2.90165827]
[1725939390633,2.4516,2349.3,2348.9,0.89432907]
[1725939390833,2.4516,2349.3,2349.0,2.90166856]
[1725939391130,2.4516,2349.3,2348.9,0.89432907]
[1725939391449,2.4516,2349.3,2349.0,2.90174942]
[1725939391623,2.4516,2349.3,2348.9,0.89432907]
[1725939391827,2.4516,2349.3,2349.0,2.90174275]
[1725939392132,2.4516,2349.3,2348.9,0.89432907]
[1725939392351,2.4516,2349.3,2349.0,2.90186307]
[1725939392526,2.4516,2349.3,2348.9,0.89432907]
[1725939392854,2.4516,2349.3,2349.0,2.90194012]
[1725939393017,2.4516,2349.3,2348.9,0.89432907]
[1725939393219,2.4516,2349.3,2349.0,2.90199458]
[1725939393459,2.4516,2349.3,2349.1,1.16079783]
[1725939393659,2.4516,2349.3,2348.9,0.89432907]
[1725939393881,2.4516,2349.3,2349.0,2.90214027]
[1725939394080,2.85683421,2349.3,2348.9,0.89432907]
[1725939394290,2.85683421,2349.3,2349.0,2.90237501]
[1725939394475,2.85683421,2349.3,2348.9,0.89432907]
[1725939394683,2.4516,2349.3,2349.0,2.90242198]
[1725939394862,2.4516,2349.3,2348.9,0.89432907]
[1725939395062,2.4516,2349.3,2349.0,1.16093934]
[1725939395355,2.4516,2349.3,2348.8,2.89432907]
[1725939395784,2.4516,2349.3,2348.9,2.90265102]
[1725939396094,2.85683421,2349.3,2349.0,1.16106041]
[1725939396249,2.85683421,2349.3,2348.8,2.89432907]
[1725939396445,0.09581371,2349.2,2348.9,2.9027251]
[1725939396646,2.372,2349.1,2348.7,0.89432907]
[1725939396883,2.372,2349.1,2348.8,2.90285185]
[1725939396884,0.09581371,2349.0,2348.8,2.90285185]
[1725939397098,0.09581371,2349.0,2348.6,0.89432907]
[1725939397256,0.09581371,2349.0,2348.7,2.90286946]
[1725939397451,0.09581371,2349.0,2348.6,0.89432907]
[1725939397656,0.09581371,2349.0,2348.7,2.90242255]
[1725939397862,2.372,2348.9,2348.5,0.89432907]
[1725939398168,2.372,2348.9,2348.6,1.16102552]
[1725939398169,2.372,2348.7,2348.6,1.16102552]
[1725939398368,2.372,2348.7,2348.4,0.89432907]
[1725939398549,2.372,2348.7,2348.5,2.90256765]
[1725939398749,2.372,2348.7,2348.4,0.89432907]
[1725939398974,0.09581371,2348.6,2348.5,2.90162425]
[1725939399213,0.09581371,2348.6,2348.3,0.89432907]
[1725939399353,0.09581371,2348.6,2348.4,2.90170302]
[1725939399559,0.09581371,2348.6,2348.2,2.89432907]
[1725939399787,0.09581371,2348.6,2348.3,2.90066775]
[1725939400103,0.09581371,2348.6,2348.2,0.89432907]
[1725939400104,2.3457,2348.5,2348.2,0.89432907]
[1725939400297,1.60205491,2348.4,2348.1,0.89432907]
[1725939400481,1.60205491,2348.4,2347.7,8.25432907]
[1725939400482,1.5062412,2348.2,2347.7,8.25432907]
[1725939400685,2.38141371,2348.1,2347.6,0.89432907]
[1725939400891,1.5062412,2348.0,2347.7,1.15944551]
[1725939401070,1.60205491,2348.0,2347.6,1.73918617]
[1725939401406,1.60205491,2348.0,2347.4,0.89432907]
[1725939401605,1.9908204,2348.0,2347.5,1.15847732]
[1725939401791,1.9908204,2348.0,2347.4,1.73772466]
[1725939402001,0.0196204,2348.0,2347.2,0.89432907]
[1725939402308,3.26671386,2347.9,2347.2,1.7377617]
[1725939402516,3.26671386,2347.9,2347.0,4.63044567]
[1725939402716,3.26671386,2347.9,2347.1,1.15740716]
[1725939403508,3.26671386,2347.9,2347.0,2.0]
[1725939404400,3.26671386,2347.9,2347.0,5.0]
[1725939404615,0.32667139,2347.8,2347.0,5.98934457]
[1725939405067,1.3729,2347.7,2347.0,5.98934457]
[1725939405268,1.3729,2347.7,2347.0,2.98934457]
[1725939405813,1.3729,2347.7,2347.0,2.0]
[1725939406805,1.3729,2347.7,2347.1,0.08520311]
[1725939407169,1.3729,2347.7,2347.0,2.0]
[1725939407789,1.3729,2347.7,2347.1,0.08520021]
[1725939412106,1.3729,2347.7,2347.0,2.0]
[1725939413818,1.3729,2347.7,2347.1,0.08520026]
[1725939415292,1.3729,2347.7,2347.0,2.0]
[1725939417494,1.3729,2347.7,2347.1,0.24265]
[1725939418401,1.3729,2347.7,2347.1,0.3278503]
[1725939421146,1.3729,2347.7,2347.1,0.24265]
[1725939421906,1.3729,2347.7,2347.1,0.32785035]
[1725939422141,1.3729,2347.7,2347.2,2.3915]
[1725939422349,1.3729,2347.7,2347.3,0.55049316]
[1725939422805,1.3729,2347.7,2347.3,2.46530117]
[1725939424421,1.3729,2348.0,2347.3,2.46530117]
[1725939425322,1.50716137,2347.9,2347.3,0.46530117]
[1725939425552,1.3729,2347.8,2347.1,0.66915]
[1725939425873,1.3729,2347.8,2347.1,0.24265]
[1725939426618,1.50716137,2347.7,2347.1,0.24265]
[1725939426963,1.3729,2347.6,2347.1,0.24265]
[1725939428522,1.3729,2347.6,2347.1,0.32785043]
[1725939436972,1.3729,2347.6,2347.2,0.7003829]
[1725939437176,1.3729,2347.6,2347.2,0.55197333]
[1725939438490,1.3729,2347.6,2347.1,0.32785043]
[1725939438716,1.3729,2347.6,2347.2,0.70038715]
[1725939438916,1.3729,2347.6,2347.1,0.32785043]
[1725939439118,1.3729,2347.6,2347.2,0.70038922]